bitfinex-derivatives/quotes_ETHF0:USTF0_20260222
["timestamp","ask_amount","ask_price","bid_price","bid_amount"]
[1771743362113,1.44511985,1975.9,1975.6,1.4503565]
[1771743378223,1.34712164,1976.2,1975.6,1.4503565]
[1771743378419,1.34712164,1976.0,1975.6,1.4503565]
[1771743378617,6.36665231,1976.5,1975.8,1.41814634]
[1771743378618,1.34712164,1976.2,1975.8,1.41814634]
[1771743394432,1.34712164,1976.3,1975.8,1.41814634]
[1771743394630,0.48203586,1976.2,1975.8,1.41814634]
[1771743394929,1.34712164,1976.3,1975.8,1.41814634]
[1771743395129,0.4820307,1976.2,1975.8,1.41814634]
[1771743395331,1.34712164,1976.3,1975.8,1.41814634]
[1771743395526,0.4820221,1976.2,1975.8,1.41814634]
[1771743395723,1.34712164,1976.3,1975.8,1.41814634]
[1771743395927,0.4820221,1976.2,1975.8,1.41814634]
[1771743396231,1.34712164,1976.3,1975.8,1.41814634]
[1771743396432,0.48202619,1976.2,1975.8,1.41814634]
[1771743396632,1.34712164,1976.3,1975.8,1.41814634]
[1771743396832,0.48201913,1976.2,1975.8,1.41814634]
[1771743397131,1.34712164,1976.3,1975.8,1.41814634]
[1771743397331,1.82914077,1976.2,1975.8,1.41814634]
[1771743397528,1.34712164,1976.2,1975.8,1.41814634]
[1771743403039,1.36791303,1976.4,1976.0,1.35902967]
[1771743403334,1.85001674,1976.3,1976.0,1.35902967]
[1771743403534,0.48210371,1976.2,1976.0,1.35902967]
[1771743403735,1.36791303,1976.3,1976.0,1.35902967]
[1771743408842,0.00386995,1976.5,1976.0,1.35902967]
[1771743409047,0.00386995,1976.5,1976.2,1.35902967]
[1771743422953,0.00386995,1976.5,1976.0,1.35902967]
[1771743427152,0.00386995,1976.5,1976.2,1.35902967]
[1771743444277,1.41343272,1976.5,1976.2,1.35902967]
[1771743445373,1.41343272,1976.5,1976.2,1.22939197]
[1771743448178,1.41343272,1976.5,1976.1,1.35130792]
[1771743459591,0.00386995,1976.5,1976.1,1.35130792]
[1771743459988,0.47875147,1976.4,1976.0,6.37603743]
[1771743460192,1.34195021,1976.2,1975.9,1.47567381]
[1771743460393,0.00386995,1976.5,1975.9,1.47567381]
[1771743460587,1.34195021,1976.3,1975.9,1.47567381]
[1771743460787,0.47869898,1976.2,1975.9,1.47567381]
[1771743460987,1.34195021,1976.3,1975.9,1.47567381]
[1771743472598,0.00386995,1976.5,1975.9,1.47567381]
[1771743472798,0.47815764,1976.4,1975.9,1.47567381]
[1771743473097,0.13369819,1976.3,1975.9,1.47567381]
[1771743473291,0.00386995,1976.5,1975.9,1.47567381]
[1771743481505,1.34582016,1976.5,1975.9,1.47567381]
[1771743484909,1.34195021,1976.3,1975.9,1.47567381]
[1771743485402,0.00386995,1976.5,1975.9,1.47567381]
[1771743485403,1.34582016,1976.5,1975.9,1.47567381]
[1771743485601,1.81780917,1976.4,1975.9,1.47567381]
[1771743485802,0.47585896,1976.3,1975.9,1.47567381]
[1771743486000,1.34195021,1976.4,1975.9,1.47567381]
[1771743486203,0.47585813,1976.3,1975.9,1.47567381]
[1771743486405,1.34195021,1976.4,1975.9,1.47567381]
[1771743486604,0.47592713,1976.3,1975.9,1.47567381]
[1771743486808,1.34195021,1976.4,1975.9,1.47567381]
[1771743487007,0.47592713,1976.3,1975.9,1.47567381]
[1771743487204,1.34195021,1976.4,1975.9,1.47567381]
[1771743487405,0.4760145,1976.3,1975.9,1.47567381]
[1771743487613,1.34195021,1976.4,1975.9,1.47567381]
[1771743487807,0.47601491,1976.3,1975.9,1.47567381]
[1771743488008,1.34195021,1976.4,1975.9,1.47567381]
[1771743488207,0.47601486,1976.3,1975.9,1.47567381]
[1771743488402,0.47601486,1976.2,1975.9,1.47567381]
[1771743488605,1.34195021,1976.4,1975.9,1.47567381]
[1771743488811,0.47613352,1976.3,1975.9,1.47567381]
[1771743489014,0.00386995,1976.5,1975.9,1.47567381]
[1771743492117,1.35336472,1976.5,1975.9,1.47567381]
[1771743501015,0.47267895,1976.4,1975.9,1.47567381]
[1771743501207,0.47267895,1976.3,1975.9,1.47567381]
[1771743501407,1.35336472,1976.5,1975.9,1.47567381]
[1771743501615,0.4726783,1976.4,1975.9,1.47567381]
[1771743501815,0.4726783,1976.3,1975.9,1.47567381]
[1771743502012,1.35336472,1976.5,1975.9,1.47567381]
[1771743502211,0.47267715,1976.4,1975.9,1.47567381]
[1771743502415,0.47267715,1976.3,1975.9,1.47567381]
[1771743502614,0.00386995,1976.5,1976.1,1.39328498]
[1771743502911,0.47267485,1976.4,1976.1,1.39328498]
[1771743503116,0.47267485,1976.3,1976.1,1.39328498]
[1771743503318,0.00386995,1976.5,1976.1,1.39328498]
[1771743503513,0.47266094,1976.4,1976.1,1.39328498]
[1771743503714,0.47266094,1976.3,1976.1,1.39328498]
[1771743503914,0.00386995,1976.5,1976.1,1.39328498]
[1771743504314,1.34949477,1976.8,1976.1,1.39328498]
[1771743505220,1.35518868,1976.8,1976.1,1.39328498]
[1771743516121,1.81795125,1976.7,1976.1,1.39328498]
[1771743516318,1.81795125,1976.6,1976.1,1.39328498]
[1771743516523,1.34949477,1976.6,1976.1,1.39328498]
[1771743527530,1.34949477,1976.6,1976.0,7.64456857]
[1771743527731,1.22939801,1976.4,1976.0,1.26853114]
[1771743531433,1.22939801,1976.4,1976.1,1.26853114]
[1771743535431,1.22939801,1976.4,1976.0,7.64456857]
[1771743535630,1.22939801,1976.4,1975.9,7.64456857]
[1771743536034,1.22939801,1976.4,1976.0,1.26853114]
[1771743547745,1.22939801,1976.4,1975.9,6.37603743]
[1771743547950,1.22939801,1976.4,1976.0,1.19895869]
[1771743551854,1.22939801,1976.4,1975.9,7.50001571]
[1771743552153,1.22939801,1976.4,1976.0,1.12397828]
[1771743564364,1.22939801,1976.4,1976.0,7.50001571]
[1771743567966,1.22939801,1976.4,1976.0,1.12397828]
[1771743575172,1.11766326,1976.7,1976.0,1.12397828]
[1771743575374,1.11766326,1976.5,1976.0,1.12397828]
[1771743576671,1.11766326,1976.5,1975.9,6.37693255]
[1771743576871,0.46916764,1976.4,1975.8,7.40706485]
[1771743577070,1.11766326,1976.2,1975.8,1.0301323]
[1771743578877,1.03915812,1976.7,1975.8,1.0301323]
[1771743579078,1.03915812,1976.5,1975.8,1.0301323]
[1771743579279,1.03915812,1976.3,1975.8,1.0301323]
[1771743580175,1.03915812,1976.7,1975.8,1.0301323]
[1771743580385,1.03915812,1976.5,1975.8,1.0301323]
[1771743580679,1.50809623,1976.4,1975.8,1.0301323]
[1771743580880,1.03915812,1976.4,1975.8,1.0301323]
[1771743585486,1.03915812,1976.4,1975.9,0.96095079]
[1771743597285,1.03915812,1976.7,1975.9,0.96095079]
[1771743597492,0.46888928,1976.6,1976.0,0.9067635]
[1771743597694,0.46888928,1976.5,1976.1,0.90873198]
[1771743597989,1.03915812,1976.6,1976.1,0.90873198]
[1771743598190,0.46886302,1976.5,1976.1,0.90873198]
[1771743598400,1.03915812,1976.6,1976.1,0.90873198]
[1771743598586,0.46886308,1976.5,1976.1,0.90873198]
[1771743598886,1.03915812,1976.5,1976.1,0.90873198]
[1771743600189,1.03915812,1976.6,1976.1,0.90873198]
[1771743600393,0.46884764,1976.5,1976.1,0.90873198]
[1771743600589,1.03915812,1976.6,1976.1,0.90873198]
[1771743600785,0.46884762,1976.5,1976.1,0.90873198]
[1771743600997,1.03915812,1976.6,1976.1,0.90873198]
[1771743601196,0.46885036,1976.5,1976.1,0.90873198]
[1771743601495,1.03915812,1976.6,1976.1,0.90873198]
[1771743601694,0.46881226,1976.5,1976.1,0.90873198]
[1771743601999,1.03915812,1976.6,1976.1,0.90873198]
[1771743602199,0.46881226,1976.5,1976.1,0.90873198]
[1771743602496,1.03915812,1976.6,1976.1,0.90873198]
[1771743602698,0.4687718,1976.5,1976.1,0.90873198]
[1771743602892,1.03915812,1976.6,1976.1,0.90873198]
[1771743603086,0.46877178,1976.5,1976.1,0.90873198]
[1771743603291,1.03915812,1976.6,1976.1,0.90873198]
[1771743607001,1.04485203,1976.8,1976.1,0.90873198]
[1771743607198,0.4686473,1976.7,1976.1,0.90873198]
[1771743607401,0.4686473,1976.6,1976.1,0.90873198]
[1771743607700,1.03915812,1976.7,1976.1,0.90873198]
[1771743607994,1.5077847,1976.6,1976.1,0.90873198]
[1771743608197,1.03915812,1976.6,1976.1,0.90873198]
[1771743608503,0.92667439,1976.7,1976.1,0.90873198]
[1771743608705,0.46860697,1976.6,1976.1,0.90873198]
[1771743608904,0.92667439,1976.7,1976.1,0.90873198]
[1771743609204,0.46860692,1976.6,1976.1,0.90873198]
[1771743609403,0.92667439,1976.4,1976.0,0.84885428]
[1771743615210,0.92667439,1976.4,1975.9,6.37693255]
[1771743616309,0.92667439,1976.4,1975.8,7.1742598]
[1771743616902,0.92667439,1976.4,1975.8,0.79732725]
[1771743617309,0.92667439,1976.4,1975.8,7.1742598]
[1771743620010,0.92667439,1976.4,1975.9,0.895633]
[1771743621706,0.92667439,1976.4,1975.7,6.37693255]
[1771743621913,0.91142215,1976.2,1975.6,6.37693255]
[1771743622113,0.91142215,1976.2,1975.6,7.25421035]
[1771743624515,0.91142215,1976.2,1975.7,0.86282356]
[1771743625517,0.91142215,1976.4,1975.7,0.86282356]
[1771743625709,0.46814184,1976.3,1975.9,0.88342137]
[1771743625915,0.91142215,1976.4,1975.9,0.88342137]
[1771743626112,0.91142215,1976.3,1975.9,0.88342137]
[1771743631518,0.91142215,1976.3,1975.7,0.87215418]
[1771743637121,0.91142215,1975.9,1975.5,7.21044601]
[1771743637422,0.91142215,1975.9,1975.5,0.83351346]
[1771743643426,0.91142215,1975.9,1975.3,8.31747436]
[1771743643631,0.91142215,1975.9,1975.4,0.83471184]
[1771743649436,0.83696983,1976.1,1975.4,0.83471184]
[1771743651138,0.83696983,1976.1,1975.5,1.14815076]
[1771743651332,0.83696983,1976.1,1975.8,0.7772982]
[1771743653640,0.83696983,1976.3,1975.8,0.7772982]
[1771743657239,0.83696983,1975.8,1975.4,7.07522576]
[1771743657542,0.83696983,1975.8,1975.5,0.69829321]
[1771743658543,0.83696983,1975.8,1975.3,0.67520953]
[1771743659243,0.83696983,1976.2,1975.5,0.66904516]
[1771743659542,0.83696983,1976.0,1975.5,0.66904516]
[1771743667254,0.83696983,1976.2,1975.7,0.59620032]
[1771743667452,1.3057255,1976.1,1975.7,0.59620032]
[1771743667751,0.46875567,1976.0,1975.7,0.59620032]
[1771743667946,0.83696983,1976.3,1975.7,0.59620032]
[1771743668150,0.46874634,1976.2,1975.7,0.59620032]
[1771743668345,0.46874634,1976.1,1975.7,0.59620032]
[1771743668553,0.83696983,1976.3,1975.7,0.59620032]
[1771743668756,0.46872022,1976.2,1975.7,0.59620032]
[1771743669052,0.83696983,1976.3,1975.7,0.59620032]
[1771743669255,0.46872011,1976.2,1975.7,0.59620032]
[1771743669454,0.83696983,1976.3,1975.7,0.59620032]
[1771743669753,0.46865904,1976.2,1975.7,0.59620032]
[1771743669954,0.83696983,1976.3,1975.7,0.59620032]
[1771743670150,0.46865904,1976.2,1975.7,0.59620032]
[1771743670348,0.83696983,1976.3,1975.7,0.59620032]
[1771743670651,0.72763076,1976.6,1975.7,0.59620032]
[1771743670853,1.19623629,1976.5,1976.2,0.5742822]
[1771743671059,0.72763076,1976.5,1976.2,0.5742822]
[1771743672755,0.77835839,1976.7,1976.2,0.5742822]
[1771743672958,0.46823145,1976.6,1976.2,0.5742822]
[1771743673152,0.77835839,1976.5,1976.2,0.5742822]
[1771743673357,0.77835839,1976.7,1976.2,0.5742822]
[1771743673658,1.24645174,1976.6,1976.2,0.5742822]
[1771743673858,0.77835839,1976.6,1976.2,0.5742822]
[1771743698373,0.46866688,1976.5,1976.2,0.5742822]
[1771743698570,0.77835839,1976.6,1976.2,0.5742822]
[1771743698766,0.46867063,1976.5,1976.2,0.5742822]
[1771743698972,0.77835839,1976.6,1976.2,0.5742822]
[1771743699173,0.46867063,1976.5,1976.2,0.5742822]
[1771743699371,0.77835839,1976.6,1976.2,0.5742822]
[1771743699571,0.46879439,1976.5,1976.2,0.5742822]
[1771743699771,0.77835839,1976.6,1976.2,0.5742822]
[1771743699973,0.46879439,1976.5,1976.2,0.5742822]
[1771743700173,0.77835839,1976.6,1976.2,0.5742822]
[1771743700373,0.4690027,1976.5,1976.2,0.5742822]
[1771743700573,0.77835839,1976.6,1976.2,0.5742822]
[1771743700872,0.4690027,1976.5,1976.2,0.5742822]
[1771743701073,0.77835839,1976.6,1976.2,0.5742822]
[1771743701275,0.4690027,1976.5,1976.2,0.5742822]
[1771743701476,0.77835839,1976.6,1976.2,0.5742822]
[1771743701677,0.46901725,1976.5,1976.2,0.5742822]
[1771743701881,0.77835839,1976.6,1976.2,0.5742822]
[1771743702080,0.46901716,1976.5,1976.2,0.5742822]
[1771743702381,0.77835839,1976.6,1976.2,0.5742822]
[1771743702581,0.46903937,1976.5,1976.2,0.5742822]
[1771743702782,0.77835839,1976.6,1976.2,0.5742822]
[1771743702980,0.46903884,1976.5,1976.2,0.5742822]
[1771743703282,0.77835839,1976.6,1976.2,0.5742822]
[1771743703482,0.46903263,1976.5,1976.2,0.5742822]
[1771743703682,0.77835839,1976.6,1976.2,0.5742822]
[1771743703882,0.46903263,1976.5,1976.2,0.5742822]
[1771743704181,0.77835839,1976.6,1976.2,0.5742822]
[1771743704376,0.46902245,1976.5,1976.2,0.5742822]
[1771743704573,0.77835839,1976.6,1976.2,0.5742822]
[1771743704773,0.46902245,1976.5,1976.2,0.5742822]
[1771743704977,0.77835839,1976.6,1976.2,0.5742822]
[1771743705173,0.4690225,1976.5,1976.2,0.5742822]
[1771743705375,0.77835839,1976.6,1976.2,0.5742822]
[1771743705581,1.18641868,1976.5,1976.2,0.5742822]
[1771743705780,0.71740295,1976.5,1976.2,0.5742822]
[1771743705981,0.71740295,1976.7,1976.2,0.5742822]
[1771743706178,0.46901573,1976.6,1976.2,0.5742822]
[1771743706485,0.00569391,1976.8,1976.4,0.40865162]
[1771743706687,0.72309686,1976.8,1976.4,0.41404735]
[1771743713291,0.00569391,1976.8,1976.4,0.41404735]
[1771743714695,0.71740295,1977.0,1976.4,0.41404735]
[1771743715692,0.72323465,1977.0,1976.4,0.41404735]
[1771743725803,0.72323465,1977.0,1976.4,0.00539573]
[1771743726810,0.72323465,1977.0,1976.2,6.34974818]
[1771743727805,0.72323465,1977.0,1976.2,6.35392831]
[1771743728005,0.72323465,1977.0,1976.2,6.67572182]
[1771743728404,0.6983864,1976.8,1976.2,6.67572182]
[1771743730611,0.6983864,1976.8,1976.3,0.31644411]
[1771743735211,0.6983864,1976.8,1976.3,6.66619229]
[1771743735614,0.6983864,1976.8,1976.4,0.30357264]
[1771743736016,0.69158315,1977.0,1976.4,0.30357264]
[1771743736314,1.15133724,1976.9,1976.4,0.30357264]
[1771743736514,0.68575145,1976.9,1976.4,0.30357264]
[1771743738616,0.68575145,1976.9,1976.5,0.29780422]
[1771743739615,0.69158315,1977.0,1976.5,0.29780422]
[1771743739917,0.46579134,1976.9,1976.5,0.29780422]
[1771743740116,0.69158315,1977.0,1976.5,0.29780422]
[1771743740420,0.46578811,1976.9,1976.5,0.29780422]
[1771743740613,0.69158315,1977.0,1976.5,0.29780422]
[1771743740812,0.46578251,1976.9,1976.5,0.29780422]
[1771743741012,0.69158315,1977.0,1976.5,0.29780422]
[1771743741213,0.46577481,1976.9,1976.5,0.29780422]
[1771743741510,0.69158315,1977.0,1976.5,0.29780422]
[1771743741708,0.46577043,1976.9,1976.5,0.29780422]
[1771743741913,0.69158315,1977.0,1976.5,0.29780422]
[1771743743922,0.69158315,1977.0,1976.6,0.28442279]
[1771743765926,0.69158315,1977.0,1976.5,6.34974818]
[1771743766534,0.69158315,1977.0,1976.5,6.5751187]
[1771743772340,0.69158315,1977.0,1976.5,6.34974818]
[1771743772641,0.69158315,1977.0,1976.5,6.55696002]
[1771743776241,0.69158315,1977.0,1976.6,0.20187505]
[1771743780445,0.69158315,1977.0,1976.5,6.54639761]
[1771743781345,0.69158315,1977.0,1976.6,0.19528291]
[1771743781844,0.69158315,1977.0,1976.5,6.54343454]
[1771743782045,0.69158315,1977.0,1976.5,6.34974818]
[1771743782542,0.61969161,1976.8,1976.5,6.34974818]
[1771743782844,0.61969161,1976.8,1976.3,6.54343454]
[1771743785042,0.61969161,1976.8,1976.3,0.19368636]
[1771743803657,0.61969161,1976.8,1976.2,0.00418013]
[1771743804060,0.61969161,1976.8,1976.2,0.18532142]
[1771743804562,0.61969161,1976.8,1976.3,0.18114129]
[1771743812366,0.58623685,1976.6,1976.3,0.18114129]
[1771743814266,0.58623685,1976.6,1976.3,6.53088947]
[1771743815062,0.58623685,1976.6,1976.2,6.35392831]
[1771743816167,0.58623685,1976.6,1976.1,6.34974818]
[1771743817168,0.58623685,1976.6,1976.1,6.35376682]
[1771743819172,0.58623685,1976.6,1976.1,6.53274941]
[1771743822873,0.58623685,1976.6,1976.1,6.35376682]
[1771743823077,0.62653815,1976.4,1976.1,0.00401864]
[1771743842486,0.62653815,1976.8,1976.1,0.16826862]
[1771743842785,0.62653815,1976.6,1976.1,0.16826862]
[1771743845685,0.62653815,1976.9,1976.1,0.16826862]
[1771743845987,0.62653815,1976.7,1976.1,0.16826862]
[1771743846187,1.09214559,1976.6,1976.1,0.16826862]
[1771743846390,0.62653815,1976.6,1976.1,0.16826862]
[1771743848094,0.62653815,1976.6,1976.1,6.5180168]
[1771743848393,0.62653815,1976.6,1976.2,0.14829324]
[1771743863704,0.62653815,1976.6,1976.0,3.99413518]
[1771743863904,4.24560092,1977.0,1975.8,0.62368972]
[1771743863905,0.46569828,1976.5,1975.8,0.62368972]
[1771743864103,0.46569828,1976.4,1975.8,0.62368972]
[1771743864297,1.14724387,1976.7,1975.8,0.62368972]
[1771743864499,0.46571539,1976.6,1975.8,0.62368972]
[1771743864802,0.46571539,1976.5,1975.8,0.62997049]
[1771743865002,0.46571539,1976.4,1975.8,0.62997049]
[1771743865203,1.14724387,1976.7,1975.8,0.62997049]
[1771743865403,0.46567243,1976.6,1975.8,0.62997049]
[1771743865603,0.00511057,1976.4,1975.8,0.62997049]
[1771743872009,4.23976922,1976.9,1975.8,1.77775158]
[1771743872209,0.00216733,1976.7,1976.3,0.62368972]
[1771743872416,0.4676551,1976.6,1976.3,0.62368972]
[1771743872614,0.00216733,1976.6,1976.3,0.62368972]
[1771743873715,4.24560092,1977.0,1976.3,0.62368972]
[1771743874013,0.46543057,1976.9,1976.3,0.62368972]
[1771743874213,0.46543057,1976.8,1976.3,0.62368972]
[1771743874417,0.46543057,1976.7,1976.3,0.62368972]
[1771743874714,0.46543057,1976.6,1976.3,0.62368972]
[1771743874912,4.24560092,1977.0,1976.3,0.62368972]
[1771743875111,0.46542994,1976.9,1976.3,0.62368972]
[1771743875417,0.46542994,1976.8,1976.3,0.62368972]
[1771743875616,0.47186629,1976.7,1976.3,0.62368972]
[1771743875816,0.46542994,1976.6,1976.3,0.62368972]
[1771743876116,0.00643635,1976.7,1976.1,0.62368972]
[1771743876314,0.00605586,1976.5,1976.1,0.62368972]
[1771743878018,0.00655984,1976.8,1976.1,0.62368972]
[1771743878212,0.47201138,1976.7,1976.1,0.62368972]
[1771743878412,0.46545154,1976.6,1976.1,0.62368972]
[1771743878715,0.00655984,1976.7,1976.1,0.62368972]
[1771743878911,0.46544512,1976.6,1976.1,0.62368972]
[1771743879108,0.00655984,1976.7,1976.1,0.62368972]
[1771743879409,0.46545086,1976.6,1976.1,0.62368972]
[1771743879710,0.00655984,1976.7,1976.1,0.62368972]
[1771743879908,0.46545105,1976.6,1976.1,0.62368972]
[1771743880211,0.00655984,1976.7,1976.1,0.62368972]
[1771743880410,0.4654571,1976.6,1976.1,0.62368972]
[1771743880608,0.00655984,1976.7,1976.1,0.62368972]
[1771743880809,0.4654571,1976.6,1976.1,0.62368972]
[1771743881008,0.00655984,1976.7,1976.1,0.62368972]
[1771743881208,0.4654571,1976.6,1976.1,0.62368972]
[1771743881414,0.00655984,1976.7,1976.1,0.62368972]
[1771743881610,0.46546342,1976.6,1976.1,0.62368972]
[1771743881813,0.00655984,1976.7,1976.1,0.62368972]
[1771743882014,0.46546332,1976.6,1976.1,0.62368972]
[1771743882214,0.00655984,1976.7,1976.1,0.62368972]
[1771743882412,0.46546994,1976.6,1976.1,0.62368972]
[1771743882618,0.00655984,1976.7,1976.1,0.62368972]
[1771743882819,0.46546994,1976.6,1976.1,0.62368972]
[1771743883014,0.00655984,1976.7,1976.1,0.62368972]
[1771743883216,0.46546994,1976.6,1976.1,0.62368972]
[1771743883415,0.00655984,1976.7,1976.1,0.62368972]
[1771743883716,0.46547691,1976.6,1976.1,0.62368972]
[1771743883912,0.00655984,1976.7,1976.1,0.62368972]
[1771743884113,0.46547691,1976.6,1976.1,0.62368972]
[1771743884313,0.00655984,1976.7,1976.1,0.62368972]
[1771743884516,0.46548619,1976.6,1976.1,0.62368972]
[1771743884720,0.00655984,1976.7,1976.1,0.62368972]
[1771743885013,0.46548619,1976.6,1976.1,0.62368972]
[1771743885212,0.00655984,1976.7,1976.1,0.62368972]
[1771743885421,0.46549592,1976.6,1976.1,0.62368972]
[1771743885717,0.00655984,1976.7,1976.1,0.62368972]
[1771743886020,0.46549347,1976.6,1976.1,0.62368972]
[1771743886216,0.00655984,1976.7,1976.1,0.62368972]
[1771743886411,0.46550282,1976.6,1976.1,0.62368972]
[1771743886613,0.00263046,1976.8,1976.1,0.62368972]
[1771743886813,0.46550282,1976.7,1976.1,0.62368972]
[1771743887021,0.46550282,1976.6,1976.1,0.62368972]
[1771743887222,0.00263046,1976.8,1976.1,0.62368972]
[1771743887519,0.46551386,1976.7,1976.1,0.62368972]
[1771743887720,0.46551386,1976.6,1976.1,0.62368972]
[1771743887914,0.00263046,1976.8,1976.1,0.62368972]
[1771743888112,0.46551386,1976.7,1976.1,0.62368972]
[1771743888316,0.46551386,1976.6,1976.1,0.62368972]
[1771743888616,0.00263046,1976.8,1976.1,0.62368972]
[1771743888817,0.46552503,1976.7,1976.1,0.62368972]
[1771743889013,0.46552503,1976.6,1976.1,0.62368972]
[1771743889212,0.00263046,1976.8,1976.1,0.62368972]
[1771743889414,0.46553797,1976.7,1976.1,0.62368972]
[1771743889618,0.46553797,1976.6,1976.1,0.62368972]
[1771743889820,0.00263046,1976.8,1976.1,0.62368972]
[1771743890021,0.46553797,1976.7,1976.1,0.62368972]
[1771743890216,0.46553797,1976.6,1976.1,0.62368972]
[1771743890417,0.00263046,1976.8,1976.1,0.62368972]
[1771743890614,0.46555316,1976.7,1976.1,0.62368972]
[1771743890814,0.46555316,1976.6,1976.1,0.62368972]
[1771743891118,0.00263046,1976.8,1976.1,0.62368972]
[1771743891314,0.46556908,1976.7,1976.1,0.62368972]
[1771743891518,0.46556908,1976.6,1976.1,0.62368972]
[1771743891714,0.00263046,1976.8,1976.1,0.62368972]
[1771743891914,0.46556908,1976.7,1976.1,0.62368972]
[1771743892119,0.46556908,1976.6,1976.1,0.62368972]
[1771743892319,0.00263046,1976.8,1976.1,0.62368972]
[1771743892524,0.46558583,1976.7,1976.1,0.62368972]
[1771743892725,0.46558583,1976.6,1976.1,0.62368972]
[1771743892925,0.00263046,1976.8,1976.1,0.62368972]
[1771743893125,0.46558581,1976.7,1976.1,0.62368972]
[1771743893423,0.46558581,1976.6,1976.1,0.62368972]
[1771743893624,0.00263046,1976.8,1976.1,0.62368972]
[1771743893825,0.46560536,1976.7,1976.1,0.62368972]
[1771743894122,0.46560536,1976.6,1976.1,0.62368972]
[1771743894323,0.00263046,1976.8,1976.1,0.62368972]
[1771743894523,0.46562068,1976.7,1976.1,0.62368972]
[1771743894725,0.46562068,1976.6,1976.1,0.62368972]
[1771743894926,0.00263046,1976.8,1976.1,0.62368972]
[1771743895125,0.46562067,1976.7,1976.1,0.62368972]
[1771743895321,0.46562067,1976.6,1976.1,0.62368972]
[1771743895527,0.00263046,1976.8,1976.1,0.62368972]
[1771743895825,0.46564531,1976.7,1976.1,0.62368972]
[1771743896027,0.46564531,1976.6,1976.1,0.62368972]
[1771743896228,0.00263046,1976.8,1976.1,0.62368972]
[1771743896428,0.46567538,1976.7,1976.1,0.62368972]
[1771743896626,0.46567538,1976.6,1976.1,0.62368972]
[1771743896827,0.00263046,1976.8,1976.1,0.62368972]
[1771743897027,0.46567538,1976.7,1976.1,0.62368972]
[1771743897327,0.46567538,1976.6,1976.1,0.62368972]
[1771743897528,0.00263046,1976.8,1976.1,0.62368972]
[1771743897824,0.46571215,1976.7,1976.1,0.62368972]
[1771743898029,0.46571215,1976.6,1976.1,0.62368972]
[1771743898229,0.00263046,1976.8,1976.1,0.62368972]
[1771743898428,0.46575648,1976.7,1976.1,0.62368972]
[1771743898628,0.46575648,1976.6,1976.1,0.62368972]
[1771743898822,0.00263046,1976.8,1976.1,0.62368972]
[1771743899026,0.46575648,1976.7,1976.1,0.62368972]
[1771743899225,0.46575648,1976.6,1976.1,0.62368972]
[1771743899524,0.00263046,1976.8,1976.1,0.62368972]
[1771743899724,0.46581275,1976.7,1976.1,0.62368972]
[1771743900022,0.46581275,1976.6,1976.1,0.62368972]
[1771743900227,0.00263046,1976.8,1976.1,0.62368972]
[1771743900421,0.46588424,1976.7,1976.1,0.62368972]
[1771743900620,0.46588424,1976.6,1976.1,0.62368972]
[1771743900821,0.00263046,1976.8,1976.1,0.62368972]
[1771743901027,0.46588424,1976.7,1976.1,0.62368972]
[1771743901226,0.46588424,1976.6,1976.1,6.99280826]
[1771743901531,0.00263046,1976.8,1976.2,0.61164945]
[1771743901731,0.47186506,1976.7,1976.2,0.61164945]
[1771743901931,0.46600054,1976.6,1976.2,0.61164945]
[1771743902135,0.00558597,1976.6,1976.2,0.61164945]
[1771743902528,5.38755031,1976.9,1976.2,0.61164945]
[1771743902529,0.00558597,1976.8,1976.2,0.61164945]
[1771743902829,0.47166365,1976.7,1976.2,0.61164945]
[1771743903029,0.46604431,1976.6,1976.2,0.61164945]
[1771743903328,0.46607539,1976.5,1976.2,0.61164945]
[1771743903531,0.00561934,1976.7,1976.2,0.61164945]
[1771743903731,0.4660766,1976.6,1976.2,0.61164945]
[1771743903933,0.4660766,1976.5,1976.2,0.61164945]
[1771743904127,0.00561934,1976.7,1976.2,0.61164945]
[1771743904431,0.46607502,1976.6,1976.2,0.61164945]
[1771743904730,0.46607502,1976.5,1976.2,0.61164945]
[1771743905030,0.00561934,1976.7,1976.2,0.61164945]
[1771743905231,0.46607634,1976.6,1976.2,0.61164945]
[1771743905432,0.00561934,1976.7,1976.2,0.61164945]
[1771743905433,0.46607634,1976.5,1976.2,0.61164945]
[1771743905632,0.00561934,1976.7,1976.2,0.61164945]
[1771743905933,0.46607619,1976.6,1976.2,0.61164945]
[1771743906229,0.46607619,1976.5,1976.2,0.61164945]
[1771743906431,0.00561934,1976.7,1976.2,0.61164945]
[1771743906625,0.46608336,1976.6,1976.2,0.61164945]
[1771743906828,0.46608336,1976.5,1976.2,0.61164945]
[1771743907031,0.00561934,1976.7,1976.2,0.61164945]
[1771743907233,0.46608336,1976.6,1976.2,0.61164945]
[1771743907431,0.46608336,1976.5,1976.2,0.61164945]
[1771743907623,0.00561934,1976.7,1976.2,0.61164945]
[1771743907824,0.46609747,1976.6,1976.2,0.61164945]
[1771743908033,0.46609747,1976.5,1976.2,0.61164945]
[1771743908235,0.00561934,1976.7,1976.2,0.61164945]
[1771743908533,0.46886922,1976.6,1976.2,0.61164945]
[1771743908733,0.46611165,1976.5,1976.2,0.61164945]
[1771743909032,0.00275757,1976.6,1976.2,0.61164945]
[1771743909233,0.46611165,1976.5,1976.2,0.61164945]
[1771743909430,0.00275757,1976.6,1976.2,0.61164945]
[1771743909630,0.46611501,1976.5,1976.2,0.61164945]
[1771743909829,0.00275757,1976.6,1976.2,0.61164945]
[1771743910026,0.46611501,1976.5,1976.2,0.61164945]
[1771743910230,0.00275757,1976.6,1976.2,0.61164945]
[1771743910435,0.46611939,1976.5,1976.2,0.61164945]
[1771743910641,0.00275757,1976.6,1976.2,0.61164945]
[1771743910836,0.46611942,1976.5,1976.2,0.61164945]
[1771743911037,0.00275757,1976.6,1976.2,0.61164945]
[1771743911235,0.46611942,1976.5,1976.2,0.61164945]
[1771743911537,0.00275757,1976.6,1976.2,0.61164945]
[1771743911835,0.46612448,1976.5,1976.2,0.61164945]
[1771743912035,5.38755031,1976.9,1976.2,0.61164945]
[1771743912235,0.46612438,1976.8,1976.2,0.61164945]
[1771743912430,0.46612438,1976.7,1976.2,0.61164945]
[1771743912632,0.46612438,1976.6,1976.2,0.61164945]
[1771743912926,0.46612438,1976.5,1976.2,0.61164945]
[1771743913128,5.38755031,1976.9,1976.2,0.61164945]
[1771743913330,0.4661374,1976.8,1976.2,0.61164945]
[1771743913530,0.4661374,1976.7,1976.2,0.61164945]
[1771743913730,0.4661374,1976.6,1976.2,0.61164945]
[1771743913930,5.38755031,1976.9,1976.2,0.61164945]
[1771743914135,0.4661381,1976.8,1976.2,0.61164945]
[1771743914435,0.4661381,1976.7,1976.2,0.61164945]
[1771743914636,0.4661381,1976.6,1976.2,0.61164945]
[1771743914836,0.4661381,1976.5,1976.2,0.61164945]
[1771743915037,5.38755031,1976.9,1976.2,0.61164945]
[1771743915338,0.46614846,1976.8,1976.2,0.61164945]
[1771743915538,0.46614846,1976.7,1976.2,0.61164945]
[1771743915740,0.46614846,1976.6,1976.3,0.61690635]
[1771743916039,4.69651837,1976.9,1976.3,0.61690635]
[1771743916741,0.45674915,1976.9,1976.3,0.61690635]
[1771743927852,0.92744978,1976.8,1976.3,0.61690635]
[1771743928154,0.46244781,1976.7,1976.3,0.61690635]
[1771743928347,0.46244781,1976.6,1976.3,0.61690635]
[1771743928550,0.46500197,1976.8,1976.3,0.61690635]